[Event "Titled Tuesday Blitz April 18 Early 2023"]
[White "Le, Tuan Minh"]
[Black "Fier, Alexandr"]
[WhiteFideId "12401153"]
[BlackFideId "2107139"]
[WhiteElo "2566"]
[BlackElo "2610"]
[Result "1-0"]
[Round "03"]
[TimeControl "180+2"]
[Date "2023.04.18"]
[WhiteClock "0:01:07"]
[BlackClock "0:01:04"]

1. d4 {[%clk 0:03:00]}  d5 {[%clk 0:03:00]} 2. Nf3 {[%clk 0:02:59]}  c5 {[%clk 0:03:01]} 3. c3 {[%clk 0:02:59]}  Nc6 {[%clk 0:02:58]} 4. Bf4 {[%clk 0:02:59]}  Qb6 {[%clk 0:02:53]} 5. Qd2 {[%clk 0:02:52]}  Nf6 {[%clk 0:02:52]} 6. e3 {[%clk 0:02:52]}  Bf5 {[%clk 0:02:50]} 7. Be2 {[%clk 0:02:46]}  h6 {[%clk 0:02:50]} 8. O-O {[%clk 0:02:45]}  e6 {[%clk 0:02:51]} 9. b3 {[%clk 0:02:29]}  Rc8 {[%clk 0:02:47]} 10. Bd3 {[%clk 0:02:29]}  Bxd3 {[%clk 0:02:44]} 11. Qxd3 {[%clk 0:02:30]}  Be7 {[%clk 0:02:44]} 12. Nbd2 {[%clk 0:02:30]}  O-O {[%clk 0:02:44]} 13. a3 {[%clk 0:02:27]}  cxd4 {[%clk 0:02:39]} 14. cxd4 {[%clk 0:02:25]}  a6 {[%clk 0:02:34]} 15. b4 {[%clk 0:02:05]}  Qb5 {[%clk 0:02:23]} 16. Qb3 {[%clk 0:02:05]}  Nd7 {[%clk 0:02:09]} 17. Rfb1 {[%clk 0:02:04]}  Qb6 {[%clk 0:01:54]} 18. h3 {[%clk 0:01:59]}  Qa7 {[%clk 0:01:50]} 19. b5 {[%clk 0:01:41]}  axb5 {[%clk 0:01:39]} 20. Qxb5 {[%clk 0:01:40]}  Na5 {[%clk 0:01:38]} 21. Qxd7 {[%clk 0:01:39]}  Rfe8 {[%clk 0:01:34]} 22. Ne5 {[%clk 0:01:35]}  Qa6 {[%clk 0:01:31]} 23. Qb5 {[%clk 0:01:35]}  Qa8 {[%clk 0:01:30]} 24. Rc1 {[%clk 0:01:34]}  Bf6 {[%clk 0:01:27]} 25. Nd7 {[%clk 0:01:33]}  Bd8 {[%clk 0:01:24]} 26. Nb8 {[%clk 0:01:22]}  Be7 {[%clk 0:01:16]} 27. Nd7 {[%clk 0:01:18]}  Bd8 {[%clk 0:01:16]} 28. a4 {[%clk 0:01:12]}  Rc6 {[%clk 0:01:10]} 29. Ne5 {[%clk 0:01:10]}  Rxc1+ {[%clk 0:01:07]} 30. Rxc1 {[%clk 0:01:11]}  Be7 {[%clk 0:01:07]} 31. Rc7 {[%clk 0:01:11]}  f6 {[%clk 0:01:05]} 32. Ng6 {[%clk 0:01:08]}  Ba3 {[%clk 0:01:04]} 33. Qd7 {[%clk 0:01:07]} 1-0


[Site "https://www.chess.com"]

[Event "Titled Tuesday Blitz April 18 Early 2023"]
[White "Beerdsen, Thomas"]
[Black "Lazavik, Denis"]
[WhiteFideId "1030108"]
[BlackFideId "13515110"]
[WhiteElo "2547"]
[BlackElo "2560"]
[Result "0-1"]
[Round "03"]
[TimeControl "180+2"]
[Date "2023.04.18"]
[WhiteClock "0:00:02"]
[BlackClock "0:00:05"]

1. e4 {[%clk 0:03:00]}  c5 {[%clk 0:02:58]} 2. Nf3 {[%clk 0:03:01]}  e6 {[%clk 0:02:59]} 3. d4 {[%clk 0:03:02]}  cxd4 {[%clk 0:02:59]} 4. Bg5 {[%clk 0:03:02]}  Qa5+ {[%clk 0:02:56]} 5. c3 {[%clk 0:03:02]}  dxc3 {[%clk 0:02:52]} 6. Nxc3 {[%clk 0:03:03]}  Nc6 {[%clk 0:02:53]} 7. Bd3 {[%clk 0:03:01]}  Be7 {[%clk 0:02:50]} 8. Bd2 {[%clk 0:03:00]}  Qd8 {[%clk 0:02:48]} 9. O-O {[%clk 0:02:57]}  d6 {[%clk 0:02:48]} 10. Qe2 {[%clk 0:02:56]}  Nf6 {[%clk 0:02:48]} 11. Rfd1 {[%clk 0:02:56]}  O-O {[%clk 0:02:43]} 12. Rac1 {[%clk 0:02:54]}  a6 {[%clk 0:02:36]} 13. Bg5 {[%clk 0:02:44]}  h6 {[%clk 0:02:34]} 14. Bh4 {[%clk 0:02:41]}  Nh5 {[%clk 0:02:33]} 15. Bxe7 {[%clk 0:02:27]}  Qxe7 {[%clk 0:02:32]} 16. Bb1 {[%clk 0:02:20]}  Nf6 {[%clk 0:01:55]} 17. e5 {[%clk 0:02:14]}  dxe5 {[%clk 0:01:49]} 18. Nxe5 {[%clk 0:02:15]}  Nxe5 {[%clk 0:01:37]} 19. Qxe5 {[%clk 0:02:15]}  b5 {[%clk 0:01:35]} 20. Ne4 {[%clk 0:02:13]}  Ne8 {[%clk 0:00:57]} 21. Nc5 {[%clk 0:01:24]}  Ra7 {[%clk 0:00:55]} 22. b4 {[%clk 0:01:11]}  Rc7 {[%clk 0:00:53]} 23. h3 {[%clk 0:01:05]}  Nf6 {[%clk 0:00:48]} 24. Rc3 {[%clk 0:00:54]}  Nd5 {[%clk 0:00:19]} 25. Rg3 {[%clk 0:00:50]}  f6 {[%clk 0:00:19]} 26. Qh5 {[%clk 0:00:29]}  Kh8 {[%clk 0:00:19]} 27. Nd3 {[%clk 0:00:24]}  Bd7 {[%clk 0:00:16]} 28. Re1 {[%clk 0:00:17]}  Be8 {[%clk 0:00:16]} 29. Qh4 {[%clk 0:00:18]}  Rc4 {[%clk 0:00:16]} 30. Rg4 {[%clk 0:00:17]}  Rxg4 {[%clk 0:00:15]} 31. Qxg4 {[%clk 0:00:13]}  Bf7 {[%clk 0:00:15]} 32. a3 {[%clk 0:00:12]}  e5 {[%clk 0:00:14]} 33. Nc5 {[%clk 0:00:12]}  Bg8 {[%clk 0:00:14]} 34. f4 {[%clk 0:00:09]}  a5 {[%clk 0:00:10]} 35. fxe5 {[%clk 0:00:08]}  fxe5 {[%clk 0:00:11]} 36. Nd3 {[%clk 0:00:09]}  Nf6 {[%clk 0:00:10]} 37. Qh4 {[%clk 0:00:04]}  e4 {[%clk 0:00:10]} 38. Nf4 {[%clk 0:00:04]}  Bh7 {[%clk 0:00:11]} 39. bxa5 {[%clk 0:00:03]}  Qxa3 {[%clk 0:00:10]} 40. Kh2 {[%clk 0:00:04]}  Qd6 {[%clk 0:00:09]} 41. Qg3 {[%clk 0:00:03]}  Qb8 {[%clk 0:00:07]} 42. Rf1 {[%clk 0:00:02]}  b4 {[%clk 0:00:07]} 43. a6 {[%clk 0:00:03]}  Re8 {[%clk 0:00:05]} 44. Kh1 {[%clk 0:00:02]}  e3 {[%clk 0:00:05]} 45. Re1 {[%clk 0:00:02]}  Bxb1 {[%clk 0:00:05]} 46. Rxb1 {[%clk 0:00:02]}  Kg8 {[%clk 0:00:04]} 47. Re1 {[%clk 0:00:01]}  b3 {[%clk 0:00:04]} 48. Qf3 {[%clk 0:00:01]}  b2 {[%clk 0:00:05]} 49. Nh5 {[%clk 0:00:01]}  Nxh5 {[%clk 0:00:03]} 50. Qxh5 {[%clk 0:00:02]}  b1=Q {[%clk 0:00:04]} 51. Rxb1 {[%clk 0:00:02]}  Qxb1+ {[%clk 0:00:04]} 52. Kh2 {[%clk 0:00:03]}  Qb8+ {[%clk 0:00:05]} 53. Kh1 {[%clk 0:00:02]}  e2 {[%clk 0:00:05]} 0-1


[Site "https://www.chess.com"]

[Event "Titled Tuesday Blitz April 18 Early 2023"]
[White "chessfatbear"]
[Black "Tang, Andrew"]
[BlackFideId "2059630"]
[WhiteElo "2788"]
[BlackElo "2596"]
[Result "0-1"]
[Round "03"]
[TimeControl "180+2"]
[Date "2023.04.18"]
[WhiteClock "0:00:02"]
[BlackClock "0:00:05"]

1. Nf3 {[%clk 0:03:00]}  d5 {[%clk 0:02:56]} 2. d4 {[%clk 0:03:00]}  Nf6 {[%clk 0:02:55]} 3. c4 {[%clk 0:03:00]}  e6 {[%clk 0:02:56]} 4. Nc3 {[%clk 0:03:00]}  Be7 {[%clk 0:02:56]} 5. Bg5 {[%clk 0:02:56]}  h6 {[%clk 0:02:56]} 6. Bh4 {[%clk 0:02:56]}  O-O {[%clk 0:02:56]} 7. e3 {[%clk 0:02:56]}  b6 {[%clk 0:02:56]} 8. Bd3 {[%clk 0:02:51]}  Bb7 {[%clk 0:02:56]} 9. O-O {[%clk 0:02:51]}  Nbd7 {[%clk 0:02:56]} 10. Qe2 {[%clk 0:02:51]}  c5 {[%clk 0:02:55]} 11. cxd5 {[%clk 0:02:44]}  Nxd5 {[%clk 0:02:55]} 12. Bxe7 {[%clk 0:02:39]}  Qxe7 {[%clk 0:02:52]} 13. Nxd5 {[%clk 0:02:37]}  Bxd5 {[%clk 0:02:51]} 14. dxc5 {[%clk 0:02:30]}  Nxc5 {[%clk 0:02:51]} 15. Bc4 {[%clk 0:02:30]}  Bb7 {[%clk 0:02:45]} 16. Rac1 {[%clk 0:02:30]}  Rfd8 {[%clk 0:02:44]} 17. b4 {[%clk 0:02:21]}  Ne4 {[%clk 0:02:43]} 18. Qb2 {[%clk 0:02:14]}  Rac8 {[%clk 0:02:18]} 19. Be2 {[%clk 0:02:02]}  Qf6 {[%clk 0:01:35]} 20. Nd4 {[%clk 0:01:43]}  Rxc1 {[%clk 0:00:59]} 21. Qxc1 {[%clk 0:01:43]}  Rc8 {[%clk 0:00:59]} 22. Qa3 {[%clk 0:01:43]}  e5 {[%clk 0:00:10]} 23. Qxa7 {[%clk 0:01:30]}  Bd5 {[%clk 0:00:10]} 24. Nb5 {[%clk 0:00:28]}  Rc2 {[%clk 0:00:09]} 25. Bd3 {[%clk 0:00:23]}  Rd2 {[%clk 0:00:09]} 26. Qb8+ {[%clk 0:00:22]}  Kh7 {[%clk 0:00:09]} 27. Bxe4+ {[%clk 0:00:11]}  Bxe4 {[%clk 0:00:09]} 28. Nc3 {[%clk 0:00:02]}  Bd3 {[%clk 0:00:06]} 29. Nd5 {[%clk 0:00:02]}  Qxf2+ {[%clk 0:00:05]} 0-1


[Site "https://www.chess.com"]

[Event "Titled Tuesday Blitz April 18 Early 2023"]
[White "Svane, Frederik"]
[Black "Mahdavi, Reza"]
[WhiteFideId "12923044"]
[BlackFideId "12595926"]
[WhiteElo "2502"]
[BlackElo "2357"]
[Result "0-1"]
[Round "03"]
[TimeControl "180+2"]
[Date "2023.04.18"]
[WhiteClock "0:00:01"]
[BlackClock "0:00:59"]

1. g3 {[%clk 0:03:00]}  Nf6 {[%clk 0:03:00]} 2. Nf3 {[%clk 0:03:01]}  g6 {[%clk 0:03:01]} 3. Bg2 {[%clk 0:03:02]}  Bg7 {[%clk 0:03:01]} 4. O-O {[%clk 0:03:02]}  O-O {[%clk 0:03:02]} 5. c4 {[%clk 0:03:03]}  d6 {[%clk 0:03:03]} 6. d4 {[%clk 0:03:03]}  c6 {[%clk 0:03:03]} 7. Nc3 {[%clk 0:03:02]}  Qa5 {[%clk 0:03:04]} 8. h3 {[%clk 0:02:58]}  Be6 {[%clk 0:02:57]} 9. Qd3 {[%clk 0:02:51]}  Qa6 {[%clk 0:02:57]} 10. b3 {[%clk 0:02:37]}  d5 {[%clk 0:02:57]} 11. Nd2 {[%clk 0:02:09]}  Rd8 {[%clk 0:02:51]} 12. Bb2 {[%clk 0:02:06]}  dxc4 {[%clk 0:02:51]} 13. bxc4 {[%clk 0:02:06]}  Nbd7 {[%clk 0:02:51]} 14. e3 {[%clk 0:02:03]}  Ne5 {[%clk 0:02:50]} 15. Qc2 {[%clk 0:02:03]}  Nxc4 {[%clk 0:02:49]} 16. Nxc4 {[%clk 0:02:04]}  Bxc4 {[%clk 0:02:50]} 17. Rfc1 {[%clk 0:02:04]}  Rac8 {[%clk 0:02:45]} 18. Na4 {[%clk 0:02:04]}  Bd3 {[%clk 0:02:40]} 19. Qb3 {[%clk 0:02:02]}  Nd7 {[%clk 0:02:35]} 20. Nc5 {[%clk 0:01:48]}  Nxc5 {[%clk 0:02:35]} 21. Rxc5 {[%clk 0:01:49]}  e6 {[%clk 0:02:29]} 22. a4 {[%clk 0:01:48]}  Qb6 {[%clk 0:01:57]} 23. Qc3 {[%clk 0:01:22]}  Ba6 {[%clk 0:01:56]} 24. h4 {[%clk 0:01:16]}  Bf8 {[%clk 0:01:52]} 25. h5 {[%clk 0:01:14]}  Qc7 {[%clk 0:01:48]} 26. Ra5 {[%clk 0:00:48]}  Bg7 {[%clk 0:01:42]} 27. h6 {[%clk 0:00:43]}  Bh8 {[%clk 0:01:42]} 28. Rc1 {[%clk 0:00:37]}  Qe7 {[%clk 0:01:37]} 29. Ba3 {[%clk 0:00:33]}  Qd7 {[%clk 0:01:36]} 30. Bc5 {[%clk 0:00:26]}  Ra8 {[%clk 0:01:24]} 31. Ba3 {[%clk 0:00:26]}  Rac8 {[%clk 0:01:20]} 32. Bc5 {[%clk 0:00:26]}  Ra8 {[%clk 0:01:20]} 33. Qb3 {[%clk 0:00:22]}  e5 {[%clk 0:01:14]} 34. dxe5 {[%clk 0:00:22]}  Bxe5 {[%clk 0:01:13]} 35. Bxa7 {[%clk 0:00:19]}  Qd2 {[%clk 0:01:01]} 36. Rxe5 {[%clk 0:00:04]}  Qxc1+ {[%clk 0:01:01]} 37. Kh2 {[%clk 0:00:05]}  Rxa7 {[%clk 0:01:02]} 38. Re7 {[%clk 0:00:03]}  Rf8 {[%clk 0:01:02]} 39. Qb4 {[%clk 0:00:01]}  Qa1 {[%clk 0:01:00]} 40. Be4 {[%clk 0:00:01]}  Qf6 {[%clk 0:00:59]} 0-1


[Site "https://www.chess.com"]

[Event "Titled Tuesday Blitz April 18 Early 2023"]
[White "Kushko, Dmitriy"]
[Black "Shimanov, Aleksandr"]
[WhiteFideId "14162261"]
[BlackFideId "4198603"]
[WhiteElo "2230"]
[BlackElo "2631"]
[Result "1/2-1/2"]
[Round "03"]
[TimeControl "180+2"]
[Date "2023.04.18"]
[WhiteClock "0:00:28"]
[BlackClock "0:00:18"]

1. f4 {[%clk 0:03:00]}  d5 {[%clk 0:02:52]} 2. Nf3 {[%clk 0:03:00]}  g6 {[%clk 0:02:52]} 3. g3 {[%clk 0:03:00]}  c5 {[%clk 0:02:52]} 4. Bg2 {[%clk 0:03:00]}  Nc6 {[%clk 0:02:52]} 5. O-O {[%clk 0:03:00]}  Nh6 {[%clk 0:02:52]} 6. d3 {[%clk 0:02:59]}  d4 {[%clk 0:02:52]} 7. e4 {[%clk 0:02:59]}  dxe3 {[%clk 0:02:52]} 8. Bxe3 {[%clk 0:02:59]}  Bg7 {[%clk 0:02:51]} 9. c3 {[%clk 0:02:59]}  Qa5 {[%clk 0:02:16]} 10. Nbd2 {[%clk 0:02:44]}  Ng4 {[%clk 0:02:16]} 11. Qe2 {[%clk 0:02:44]}  Nxe3 {[%clk 0:01:47]} 12. Qxe3 {[%clk 0:02:45]}  O-O {[%clk 0:01:43]} 13. Nb3 {[%clk 0:02:45]}  Qc7 {[%clk 0:01:44]} 14. Nxc5 {[%clk 0:02:42]}  b6 {[%clk 0:01:40]} 15. Nb3 {[%clk 0:02:42]}  Ba6 {[%clk 0:01:37]} 16. Rfe1 {[%clk 0:02:41]}  Rad8 {[%clk 0:01:35]} 17. d4 {[%clk 0:02:42]}  e6 {[%clk 0:01:35]} 18. Ne5 {[%clk 0:02:41]}  Ne7 {[%clk 0:01:36]} 19. a4 {[%clk 0:02:36]}  Nf5 {[%clk 0:01:33]} 20. Qf2 {[%clk 0:02:36]}  Nd6 {[%clk 0:01:31]} 21. a5 {[%clk 0:02:32]}  Bb5 {[%clk 0:01:31]} 22. axb6 {[%clk 0:02:32]}  axb6 {[%clk 0:01:32]} 23. Nd2 {[%clk 0:02:31]}  Rc8 {[%clk 0:01:27]} 24. Ra3 {[%clk 0:02:30]}  Be8 {[%clk 0:01:24]} 25. Rea1 {[%clk 0:02:22]}  Nb5 {[%clk 0:01:24]} 26. Ra8 {[%clk 0:02:21]}  Rxa8 {[%clk 0:01:24]} 27. Rxa8 {[%clk 0:02:22]}  Nd6 {[%clk 0:01:24]} 28. h3 {[%clk 0:02:19]}  Bb5 {[%clk 0:01:23]} 29. Rxf8+ {[%clk 0:02:17]}  Bxf8 {[%clk 0:01:24]} 30. Bf1 {[%clk 0:02:12]}  Be8 {[%clk 0:01:24]} 31. Qf3 {[%clk 0:02:04]}  b5 {[%clk 0:01:22]} 32. Nb3 {[%clk 0:01:49]}  b4 {[%clk 0:01:20]} 33. Nc5 {[%clk 0:01:47]}  bxc3 {[%clk 0:01:20]} 34. bxc3 {[%clk 0:01:48]}  Nf5 {[%clk 0:01:14]} 35. Ne4 {[%clk 0:01:42]}  Kg7 {[%clk 0:01:10]} 36. g4 {[%clk 0:01:42]}  Nd6 {[%clk 0:01:10]} 37. Nxd6 {[%clk 0:01:32]}  Bxd6 {[%clk 0:01:11]} 38. g5 {[%clk 0:01:30]}  Ba4 {[%clk 0:00:53]} 39. c4 {[%clk 0:01:29]}  Qa5 {[%clk 0:00:49]} 40. c5 {[%clk 0:01:29]}  Bc7 {[%clk 0:00:49]} 41. Qe3 {[%clk 0:01:18]}  Qb4 {[%clk 0:00:48]} 42. h4 {[%clk 0:01:06]}  Bc2 {[%clk 0:00:41]} 43. Kf2 {[%clk 0:01:00]}  Bf5 {[%clk 0:00:33]} 44. Kg3 {[%clk 0:00:59]}  Qb2 {[%clk 0:00:30]} 45. Bd3 {[%clk 0:00:53]}  Qc3 {[%clk 0:00:23]} 46. Kf2 {[%clk 0:00:53]}  Qb2+ {[%clk 0:00:23]} 47. Be2 {[%clk 0:00:40]}  Qa1 {[%clk 0:00:20]} 48. Bg4 {[%clk 0:00:36]}  Qh1 {[%clk 0:00:19]} 49. Bxf5 {[%clk 0:00:30]}  Qxh4+ {[%clk 0:00:17]} 50. Qg3 {[%clk 0:00:30]}  Qxg3+ {[%clk 0:00:18]} 51. Kxg3 {[%clk 0:00:30]}  gxf5 {[%clk 0:00:18]} 52. Nd7 {[%clk 0:00:28]} 1/2-1/2


[Site "https://www.chess.com"]

[Event "Titled Tuesday Blitz April 18 Early 2023"]
[White "Sjugirov, Sanan"]
[Black "Atakishiyev, Elmar"]
[WhiteFideId "4189302"]
[BlackFideId "13410547"]
[WhiteElo "2569"]
[BlackElo "2239"]
[Result "0-1"]
[Round "03"]
[TimeControl "180+2"]
[Date "2023.04.18"]
[WhiteClock "0:00:01"]
[BlackClock "0:00:11"]

1. e4 {[%clk 0:03:00]}  c5 {[%clk 0:02:57]} 2. Nf3 {[%clk 0:03:00]}  e6 {[%clk 0:02:58]} 3. c3 {[%clk 0:03:00]}  d5 {[%clk 0:02:57]} 4. exd5 {[%clk 0:03:00]}  exd5 {[%clk 0:02:58]} 5. Bb5+ {[%clk 0:02:59]}  Nc6 {[%clk 0:02:58]} 6. d4 {[%clk 0:02:58]}  Nf6 {[%clk 0:02:58]} 7. O-O {[%clk 0:02:58]}  Be7 {[%clk 0:02:59]} 8. dxc5 {[%clk 0:02:56]}  Bxc5 {[%clk 0:03:00]} 9. Re1+ {[%clk 0:02:55]}  Be6 {[%clk 0:02:59]} 10. Be3 {[%clk 0:02:49]}  Bd6 {[%clk 0:02:36]} 11. Nbd2 {[%clk 0:02:42]}  O-O {[%clk 0:02:36]} 12. Nb3 {[%clk 0:02:42]}  a6 {[%clk 0:02:29]} 13. Bf1 {[%clk 0:02:40]}  h6 {[%clk 0:02:26]} 14. Bc5 {[%clk 0:02:38]}  Re8 {[%clk 0:02:20]} 15. Bxd6 {[%clk 0:02:36]}  Qxd6 {[%clk 0:02:21]} 16. Nfd4 {[%clk 0:02:27]}  Rad8 {[%clk 0:02:16]} 17. Qf3 {[%clk 0:02:16]}  Bc8 {[%clk 0:02:15]} 18. Qg3 {[%clk 0:02:13]}  Qxg3 {[%clk 0:02:13]} 19. hxg3 {[%clk 0:02:14]}  Ne4 {[%clk 0:02:10]} 20. Rad1 {[%clk 0:02:10]}  Ne5 {[%clk 0:02:04]} 21. Re2 {[%clk 0:01:35]}  h5 {[%clk 0:01:51]} 22. Nd2 {[%clk 0:01:20]}  Bg4 {[%clk 0:01:16]} 23. f3 {[%clk 0:01:18]}  Nxg3 {[%clk 0:01:17]} 24. fxg4 {[%clk 0:01:17]}  Nxe2+ {[%clk 0:01:17]} 25. Bxe2 {[%clk 0:01:15]}  Nxg4 {[%clk 0:01:17]} 26. Bxg4 {[%clk 0:01:13]}  hxg4 {[%clk 0:01:18]} 27. Nf1 {[%clk 0:01:05]}  g6 {[%clk 0:01:14]} 28. Kf2 {[%clk 0:01:01]}  f5 {[%clk 0:01:10]} 29. Ne3 {[%clk 0:00:59]}  Re4 {[%clk 0:01:11]} 30. Ndc2 {[%clk 0:00:51]}  Kg7 {[%clk 0:00:57]} 31. Rd2 {[%clk 0:00:35]}  Rf4+ {[%clk 0:00:45]} 32. Kg3 {[%clk 0:00:33]}  Re4 {[%clk 0:00:45]} 33. Kf2 {[%clk 0:00:21]}  Rf4+ {[%clk 0:00:45]} 34. Ke2 {[%clk 0:00:20]}  Re4 {[%clk 0:00:42]} 35. Kd3 {[%clk 0:00:20]}  Kf6 {[%clk 0:00:36]} 36. Rf2 {[%clk 0:00:17]}  Kg5 {[%clk 0:00:36]} 37. Rf1 {[%clk 0:00:10]}  f4 {[%clk 0:00:33]} 38. Nxd5 {[%clk 0:00:07]}  Re5 {[%clk 0:00:31]} 39. c4 {[%clk 0:00:07]}  b5 {[%clk 0:00:32]} 40. b3 {[%clk 0:00:07]}  bxc4+ {[%clk 0:00:16]} 41. bxc4 {[%clk 0:00:08]}  Rf8 {[%clk 0:00:17]} 42. Nd4 {[%clk 0:00:08]}  Rf7 {[%clk 0:00:17]} 43. Nc3 {[%clk 0:00:07]}  Re3+ {[%clk 0:00:16]} 44. Kc2 {[%clk 0:00:06]}  Rc7 {[%clk 0:00:16]} 45. Nde2 {[%clk 0:00:02]}  Rxc4 {[%clk 0:00:16]} 46. Kd2 {[%clk 0:00:03]}  Rc8 {[%clk 0:00:14]} 47. Nd5 {[%clk 0:00:02]}  Rd8 {[%clk 0:00:12]} 48. Nxf4 {[%clk 0:00:02]}  Re5 {[%clk 0:00:12]} 49. Kc3 {[%clk 0:00:02]}  Rdxd5 {[%clk 0:00:12]} 50. Nxd5 {[%clk 0:00:02]}  Rxd5 {[%clk 0:00:13]} 51. Rf2 {[%clk 0:00:02]}  Ra5 {[%clk 0:00:11]} 52. Kb4 {[%clk 0:00:02]}  Rb5+ {[%clk 0:00:12]} 53. Kc4 {[%clk 0:00:02]}  Kh4 {[%clk 0:00:12]} 54. Rf6 {[%clk 0:00:02]}  Ra5 {[%clk 0:00:12]} 55. Kb3 {[%clk 0:00:02]}  g5 {[%clk 0:00:09]} 56. a4 {[%clk 0:00:01]}  Kg3 {[%clk 0:00:10]} 57. Kb4 {[%clk 0:00:01]}  Re5 {[%clk 0:00:10]} 58. Rxa6 {[%clk 0:00:01]}  Kxg2 {[%clk 0:00:11]} 59. Rd6 {[%clk 0:00:01]}  g3 {[%clk 0:00:11]} 0-1


[Site "https://www.chess.com"]

[Event "Titled Tuesday Blitz April 18 Early 2023"]
[White "Aradhya, Garg"]
[Black "Terry, Renato"]
[WhiteFideId "25006746"]
[BlackFideId "3803457"]
[WhiteElo "2263"]
[BlackElo "2575"]
[Result "1-0"]
[Round "03"]
[TimeControl "180+2"]
[Date "2023.04.18"]
[WhiteClock "0:00:39"]
[BlackClock "0:00:48"]

1. d4 {[%clk 0:03:00]}  e6 {[%clk 0:02:59]} 2. e4 {[%clk 0:03:00]}  d5 {[%clk 0:02:59]} 3. e5 {[%clk 0:03:01]}  c5 {[%clk 0:02:59]} 4. c3 {[%clk 0:03:01]}  Qb6 {[%clk 0:03:00]} 5. Nf3 {[%clk 0:03:01]}  Bd7 {[%clk 0:03:00]} 6. Be2 {[%clk 0:02:59]}  cxd4 {[%clk 0:03:00]} 7. Nxd4 {[%clk 0:02:58]}  Nc6 {[%clk 0:02:59]} 8. Nxc6 {[%clk 0:02:56]}  Bxc6 {[%clk 0:03:00]} 9. O-O {[%clk 0:02:57]}  Ne7 {[%clk 0:03:00]} 10. Nd2 {[%clk 0:02:56]}  Ng6 {[%clk 0:02:57]} 11. Nf3 {[%clk 0:02:56]}  Qc7 {[%clk 0:02:58]} 12. Qd4 {[%clk 0:02:52]}  Be7 {[%clk 0:02:58]} 13. Re1 {[%clk 0:02:47]}  f6 {[%clk 0:02:49]} 14. Bd3 {[%clk 0:02:46]}  Nxe5 {[%clk 0:02:48]} 15. Nxe5 {[%clk 0:02:45]}  fxe5 {[%clk 0:02:49]} 16. Rxe5 {[%clk 0:02:31]}  Bd7 {[%clk 0:02:49]} 17. Bf4 {[%clk 0:02:10]}  Bd6 {[%clk 0:02:47]} 18. Bg3 {[%clk 0:01:55]}  Bxe5 {[%clk 0:02:43]} 19. Bxe5 {[%clk 0:01:54]}  Qb6 {[%clk 0:02:43]} 20. Qh4 {[%clk 0:01:44]}  Qc5 {[%clk 0:02:04]} 21. Bg6+ {[%clk 0:01:17]}  hxg6 {[%clk 0:01:57]} 22. Qxh8+ {[%clk 0:01:18]}  Qf8 {[%clk 0:01:58]} 23. Qh4 {[%clk 0:01:19]}  Rc8 {[%clk 0:01:36]} 24. Re1 {[%clk 0:01:18]}  Rc4 {[%clk 0:01:36]} 25. Bd4 {[%clk 0:01:17]}  Qf5 {[%clk 0:01:26]} 26. Qh7 {[%clk 0:01:11]}  Kd8 {[%clk 0:01:15]} 27. Qxg7 {[%clk 0:01:09]}  Kc7 {[%clk 0:01:09]} 28. h4 {[%clk 0:00:59]}  b6 {[%clk 0:01:01]} 29. b3 {[%clk 0:00:54]}  Rc6 {[%clk 0:01:01]} 30. Be5+ {[%clk 0:00:51]}  Kc8 {[%clk 0:01:02]} 31. Qg8+ {[%clk 0:00:43]}  Kb7 {[%clk 0:01:02]} 32. Qg7 {[%clk 0:00:44]}  Kc8 {[%clk 0:01:02]} 33. Re3 {[%clk 0:00:40]}  Qb1+ {[%clk 0:00:48]} 34. Kh2 {[%clk 0:00:39]} 1-0


[Site "https://www.chess.com"]

[Event "Titled Tuesday Blitz April 18 Early 2023"]
[White "jinbojinbo"]
[Black "Pranesh M"]
[BlackFideId "35028600"]
[WhiteElo "2713"]
[BlackElo "2437"]
[Result "0-1"]
[Round "03"]
[TimeControl "180+2"]
[Date "2023.04.18"]
[WhiteClock "0:00:01"]
[BlackClock "0:00:49"]

1. c4 {[%clk 0:02:56]}  Nf6 {[%clk 0:02:59]} 2. g3 {[%clk 0:02:56]}  g6 {[%clk 0:02:59]} 3. Bg2 {[%clk 0:02:56]}  Bg7 {[%clk 0:03:00]} 4. d4 {[%clk 0:02:56]}  O-O {[%clk 0:03:00]} 5. Nc3 {[%clk 0:02:56]}  c5 {[%clk 0:03:00]} 6. d5 {[%clk 0:02:56]}  d6 {[%clk 0:03:01]} 7. e4 {[%clk 0:02:53]}  a6 {[%clk 0:03:00]} 8. a4 {[%clk 0:02:50]}  e6 {[%clk 0:02:59]} 9. Nf3 {[%clk 0:02:25]}  exd5 {[%clk 0:02:56]} 10. cxd5 {[%clk 0:02:25]}  Re8 {[%clk 0:02:50]} 11. Nd2 {[%clk 0:02:25]}  Bg4 {[%clk 0:02:22]} 12. Qc2 {[%clk 0:02:17]}  Qc7 {[%clk 0:01:40]} 13. O-O {[%clk 0:02:00]}  c4 {[%clk 0:01:38]} 14. h3 {[%clk 0:02:00]}  Bc8 {[%clk 0:01:26]} 15. a5 {[%clk 0:01:55]}  Nbd7 {[%clk 0:01:25]} 16. Ra4 {[%clk 0:01:53]}  b5 {[%clk 0:01:24]} 17. axb6 {[%clk 0:01:50]}  Nxb6 {[%clk 0:01:25]} 18. Ra3 {[%clk 0:01:49]}  Nfd7 {[%clk 0:01:25]} 19. Na4 {[%clk 0:01:40]}  Nxa4 {[%clk 0:01:23]} 20. Qxa4 {[%clk 0:01:39]}  c3 {[%clk 0:01:10]} 21. bxc3 {[%clk 0:01:39]}  Bb7 {[%clk 0:01:06]} 22. Qc4 {[%clk 0:01:25]}  Nc5 {[%clk 0:00:56]} 23. Nb3 {[%clk 0:01:21]}  a5 {[%clk 0:00:57]} 24. Nxc5 {[%clk 0:00:33]}  Ba6 {[%clk 0:00:57]} 25. Qa4 {[%clk 0:00:17]}  Bxf1 {[%clk 0:00:56]} 26. Kxf1 {[%clk 0:00:14]}  Qxc5 {[%clk 0:00:56]} 27. Be3 {[%clk 0:00:15]}  Qc7 {[%clk 0:00:56]} 28. Kg1 {[%clk 0:00:13]}  Bxc3 {[%clk 0:00:52]} 29. f4 {[%clk 0:00:08]}  Bb4 {[%clk 0:00:51]} 30. Ra2 {[%clk 0:00:08]}  Bc5 {[%clk 0:00:51]} 31. Bxc5 {[%clk 0:00:07]}  Qxc5+ {[%clk 0:00:52]} 32. Kh2 {[%clk 0:00:07]}  h5 {[%clk 0:00:49]} 33. Rb2 {[%clk 0:00:06]}  h4 {[%clk 0:00:48]} 34. gxh4 {[%clk 0:00:03]}  Qe3 {[%clk 0:00:49]} 35. f5 {[%clk 0:00:03]}  Qf4+ {[%clk 0:00:48]} 36. Kh1 {[%clk 0:00:01]}  Qc1+ {[%clk 0:00:49]} 37. Kh2 {[%clk 0:00:01]}  Qxb2 {[%clk 0:00:49]} 0-1


[Site "https://www.chess.com"]